bitfinex/quotes_SOLUSD_20260118
["timestamp","ask_amount","ask_price","bid_price","bid_amount"]
[1768701825711,10.11947849,142.83,142.8,11.32480501]
[1768701825894,10.11947849,142.83,142.8,4.32202029]
[1768701826518,10.11947849,142.83,142.8,2.21338164]
[1768701831405,10.21910827,142.84,142.81,2.17859971]
[1768701833805,10.21910827,142.84,142.8,9.1113236]
[1768701833806,2.87301451,142.83,142.8,11.26350868]
[1768701835713,2.87301451,142.83,142.8,9.15487003]
[1768701835917,9.87437343,142.83,142.8,2.15218508]
[1768701841323,2.87301451,142.82,142.8,2.15218508]
[1768701841533,2.87301451,142.82,142.79,112.61190623]
[1768701843934,2.87301451,142.82,142.79,114.72054488]
[1768701845634,2.87301451,142.82,142.79,11.22054488]
[1768701846632,9.87437343,142.83,142.8,2.07988519]
[1768701850835,2.87301451,142.82,142.79,9.11174764]
[1768701851019,2.87301451,142.82,142.79,7.00310899]
[1768701851406,2.87301451,142.82,142.79,9.05570483]
[1768701853538,2.87301451,142.82,142.79,11.16434348]
[1768701854827,9.87437343,142.83,142.8,2.03187134]
[1768701855013,9.97404241,142.84,142.81,2.03187134]
[1768701855213,2.87301451,142.83,142.8,11.14318302]
[1768701855523,2.87301451,142.83,142.8,9.03454437]
[1768701855725,2.87301451,142.83,142.8,11.14318302]
[1768701856133,9.97404241,142.84,142.81,2.02683813]
[1768701861733,9.97404241,142.84,142.81,8.99976194]
[1768701861734,2.97301451,142.84,142.81,8.99976194]
[1768701862033,0.1,142.84,142.82,1.99782993]
[1768701862225,0.1,142.84,142.82,4.10646858]
[1768701863440,0.1,142.84,142.82,4.10572341]
[1768701866742,0.1,142.84,142.82,4.07572342]
[1768701867837,0.1,142.84,142.82,11.07748393]
[1768701874350,3.03720092,142.84,142.82,9.10965399]
[1768701874845,0.1,142.84,142.82,11.01319852]
[1768701880249,0.1,142.84,142.82,9.10965399]
[1768701880434,3.03720092,142.84,142.82,9.10965399]
[1768701883736,3.03720092,142.84,142.82,7.00176051]
[1768701884456,0.1,142.84,142.82,8.87178251]
[1768701884834,3.03720092,142.84,142.82,7.00176051]
[1768701886252,3.03720092,142.84,142.81,7.00226787]
[1768701887752,0.1,142.84,142.82,8.8580157]
[1768701888059,3.03720092,142.84,142.82,7.0018098]
[1768701893060,3.03720092,142.84,142.81,7.00217578]
[1768701896265,2.8007424,142.82,142.8,7.02260396]
[1768701896468,2.8007424,142.82,142.77,19.27525152]
[1768701896757,2.8007424,142.82,142.77,122.77525152]
[1768701897566,2.8007424,142.82,142.79,7.00301171]
[1768701897862,2.8007424,142.82,142.8,7.00265511]
[1768701898665,2.8007424,142.82,142.78,7.00378204]
[1768701900249,2.8007424,142.82,142.78,9.82002669]
[1768701900572,7.00199173,142.82,142.78,9.82002669]
[1768701900775,2.8007424,142.81,142.78,7.00378204]
[1768701900969,2.74074236,142.81,142.78,7.00378204]
[1768701901783,2.74074236,142.81,142.78,9.82002669]
[1768701903065,2.74074236,142.81,142.78,11.92792017]
[1768701903370,2.8007424,142.82,142.79,2.81624465]
[1768701904674,2.8007424,142.82,142.79,9.81945462]
[1768701907062,2.8007424,142.82,142.79,7.00320997]
[1768701911678,2.10789348,142.82,142.78,9.81994479]
[1768701911878,2.8007424,142.81,142.78,9.81994479]
[1768701912176,2.74074236,142.81,142.78,9.81994479]
[1768701913272,2.68074236,142.81,142.78,9.81994479]
[1768701914171,2.6207423,142.81,142.78,9.81994479]
[1768701914978,2.5607423,142.81,142.78,9.81994479]
[1768701921380,2.50074229,142.81,142.78,9.81994479]
[1768701921578,2.10789348,142.8,142.76,7.00476323]
[1768701922268,2.10789348,142.8,142.76,9.96860283]
[1768701923284,2.9000355,142.79,142.76,9.96860283]
[1768701925278,5.01004523,142.79,142.75,9.96893772]
[1768701925484,2.9000355,142.78,142.75,9.96893772]
[1768701925666,2.11000973,142.79,142.76,2.9638396]
[1768701925866,2.11000973,142.78,142.74,114.16052735]
[1768701926382,2.11000973,142.78,142.75,7.00519533]
[1768701926679,2.11000973,142.77,142.74,3.65497039]
[1768701926866,1.99000969,142.77,142.74,3.65497039]
[1768701927271,1.99000969,142.77,142.73,9.96997133]
[1768701927662,2.9000355,142.76,142.73,9.96997133]
[1768701927863,2.84003549,142.76,142.73,9.96997133]
[1768701928573,2.78003537,142.76,142.74,7.00570032]
[1768701928759,2.11000973,142.78,142.74,9.96953992]
[1768701930486,2.9000355,142.77,142.74,9.96953992]
[1768701934669,2.9000355,142.77,142.73,7.00610076]
[1768701934888,2.9613174,142.76,142.73,9.95409871]
[1768701935085,2.90131739,142.76,142.73,9.95409871]
[1768701935589,2.90131739,142.76,142.73,7.00610076]
[1768701935968,2.90131739,142.76,142.73,9.95409871]
[1768701940102,2.90131739,142.76,142.73,7.00610076]
[1768701940388,2.9613174,142.75,142.72,113.4545936]
[1768701941768,2.9613174,142.75,142.72,9.9545936]
[1768701942888,2.90131734,142.75,142.72,9.9545936]
[1768701943083,2.84131734,142.75,142.72,9.9545936]
[1768701944795,2.84131734,142.75,142.72,2.94799795]
[1768701948188,2.9613174,142.76,142.73,2.94799795]
[1768701949896,2.9613174,142.75,142.73,2.94799795]
[1768701954903,2.90131736,142.75,142.73,2.94799795]
[1768701959800,2.90131736,142.75,142.72,9.8872721]
[1768701960180,2.74115663,142.74,142.7,4.9907076]
[1768701960386,2.11000973,142.71,142.68,9.88918972]
[1768701960591,2.05000974,142.71,142.68,9.88918972]
[1768701960790,1.99000971,142.71,142.68,9.88918972]
[1768701961002,1.99000971,142.71,142.68,7.00849185]
[1768701961500,24.51859495,142.75,142.68,9.88918972]
[1768701961501,2.11000973,142.72,142.68,9.88918972]
[1768701962089,24.51859495,142.75,142.68,9.88918972]
[1768701962294,2.74115663,142.71,142.68,9.88918972]
[1768701969489,2.74115663,142.71,142.68,7.00849185]
[1768701969695,2.74115663,142.71,142.67,7.20911497]
[1768701969903,2.74115663,142.71,142.67,10.08981284]
[1768701970394,2.74115663,142.71,142.67,12.19982257]
[1768701972210,2.74115663,142.71,142.67,5.1907076]
[1768701974215,4.85116636,142.71,142.67,3.08069787]
[1768701976422,2.74115663,142.7,142.67,3.08069787]
[1768701977825,2.74115663,142.69,142.67,0.2]
[1768701978120,2.68115663,142.69,142.67,0.2]
[1768701978499,2.68115663,142.69,142.67,3.08069787]
[1768701979020,9.11783645,142.7,142.67,3.08069787]
[1768701979320,2.11000973,142.7,142.67,0.2]
[1768701979520,22.34672645,142.72,142.67,0.2]
[1768701979521,2.11000973,142.71,142.67,0.2]
[1768701979899,2.74115663,142.7,142.67,0.2]
[1768701981103,2.74115663,142.69,142.67,0.2]
[1768701981516,2.69594468,142.69,142.67,0.2]
[1768701989039,2.87278325,142.68,142.67,0.2]
[1768701989210,2.87278325,142.68,142.65,4.83500698]
[1768701990114,2.87278325,142.68,142.66,2.72202351]
[1768701990316,2.87278325,142.68,142.66,4.83500698]
[1768701991340,2.87278325,142.69,142.67,4.83500698]
[1768701991512,7.00721743,142.71,142.67,4.83500698]
[1768701991513,2.87278325,142.7,142.67,4.83500698]
[1768701991836,2.87278325,142.7,142.67,2.72202351]
[1768701993717,2.87278325,142.7,142.67,4.83500698]
[1768701994738,2.87278325,142.7,142.67,2.72202351]
[1768702002348,5.2382188,142.69,142.67,2.72202351]
[1768702002521,2.87278325,142.7,142.67,2.72202351]
[1768702002822,5.23822083,142.69,142.67,2.72202351]
[1768702003143,2.87278325,142.7,142.67,2.72202351]
[1768702003344,5.24104474,142.69,142.67,2.72202351]
[1768702003545,2.87278325,142.7,142.67,2.72202351]
[1768702003730,5.24104474,142.69,142.67,2.72202351]
[1768702003924,2.87278325,142.7,142.67,2.72202351]
[1768702004127,5.24104253,142.69,142.67,2.72202351]
[1768702004327,2.87278325,142.7,142.67,2.72202351]
[1768702004522,5.24475447,142.69,142.67,2.72202351]
[1768702004744,2.87278325,142.7,142.67,2.72202351]
[1768702004943,5.24475447,142.69,142.67,2.72202351]
[1768702005247,2.87278325,142.7,142.67,2.72202351]
[1768702005445,5.24485047,142.69,142.67,2.72202351]
[1768702005746,2.87278325,142.7,142.67,2.72202351]
[1768702005946,5.24485251,142.69,142.67,2.72202351]
[1768702006124,2.87278325,142.7,142.67,2.72202351]
[1768702006326,5.24505956,142.69,142.67,2.72202351]
[1768702006544,2.87278325,142.7,142.67,2.72202351]
[1768702006849,5.24505956,142.69,142.67,2.72202351]
[1768702007054,2.87278325,142.7,142.67,2.72202351]
[1768702007228,5.24505752,142.69,142.67,2.72202351]
[1768702007427,2.87278325,142.7,142.67,2.72202351]
[1768702007728,5.24552577,142.69,142.67,2.72202351]
[1768702008029,2.87278325,142.7,142.67,2.72202351]
[1768702008223,5.24542639,142.69,142.67,2.72202351]
[1768702008425,2.87278325,142.7,142.67,2.72202351]
[1768702008624,5.24587582,142.69,142.67,2.72202351]
[1768702008924,2.87278325,142.7,142.67,2.72202351]
[1768702009126,5.24587379,142.69,142.67,2.72202351]
[1768702009429,2.87278325,142.7,142.67,2.72202351]
[1768702009630,5.24636727,142.69,142.67,2.72202351]
[1768702009829,2.87278325,142.7,142.67,2.72202351]
[1768702010025,5.24636727,142.69,142.67,2.72202351]
[1768702010229,2.87278325,142.7,142.67,2.72202351]
[1768702010450,5.2469158,142.69,142.67,2.72202351]
[1768702010644,2.87278325,142.7,142.67,2.72202351]
[1768702010945,5.2469158,142.69,142.67,2.72202351]
[1768702011247,2.87278325,142.7,142.67,2.72202351]
[1768702011421,5.24759812,142.69,142.67,2.72202351]
[1768702011619,2.87278325,142.7,142.67,2.72202351]
[1768702011847,5.24759812,142.69,142.67,2.72202351]
[1768702012049,2.87278325,142.7,142.67,2.72202351]
[1768702012250,5.24759812,142.69,142.67,2.72202351]
[1768702012451,2.77555786,142.68,142.67,2.72202351]
[1768702012636,2.87278325,142.7,142.67,2.72202351]
[1768702021954,2.81572359,142.69,142.65,2.8100534]
[1768702022135,4.92870706,142.69,142.66,2.8100534]
[1768702022330,2.81572359,142.69,142.66,2.8100534]
[1768702023433,2.81572359,142.69,142.66,9.81967924]
[1768702024561,5.25236668,142.68,142.66,9.81967924]
[1768702024853,2.7863286,142.67,142.66,9.81967924]
[1768702025156,2.81572359,142.69,142.66,9.81967924]
[1768702036979,5.25315953,142.68,142.66,9.81967924]
[1768702037151,2.81572359,142.69,142.66,9.81967924]
[1768702042576,2.9074641,142.71,142.68,2.8437987]
[1768702044480,2.9074641,142.71,142.68,9.85240994]
[1768702045664,2.9074641,142.73,142.7,2.8437987]
[1768702045870,2.9074641,142.74,142.71,2.8437987]
[1768702049154,8.15283301,142.73,142.71,2.8437987]
[1768702049358,1.02259954,142.72,142.71,2.8437987]
[1768702049584,0.96259955,142.72,142.71,2.8437987]
[1768702050192,2.9074641,142.73,142.71,2.8437987]
[1768702051584,24.45766356,142.75,142.71,2.8437987]
[1768702051585,18.2474641,142.75,142.72,4.95610698]
[1768702051762,18.2474641,142.75,142.73,2.8437987]
[1768702052086,2.9074641,142.75,142.73,2.8437987]
[1768702053184,2.9074641,142.76,142.73,4.95610698]
[1768702053390,2.9074641,142.77,142.74,2.8437987]
[1768702056969,2.9074641,142.77,142.73,11.76150626]
[1768702058992,2.83017796,142.76,142.73,11.76150626]
[1768702068200,2.83017796,142.76,142.74,9.11803004]
[1768702068590,2.83017796,142.76,142.74,11.76104638]
[1768702069102,18.17017796,142.78,142.75,2.64301634]
[1768702069404,18.17017796,142.78,142.75,11.76046949]
[1768702069783,2.83017796,142.78,142.75,11.76046949]
[1768702072385,2.83017796,142.78,142.75,9.11745315]
[1768702072901,2.83017796,142.78,142.75,7.00514487]
[1768702073911,2.83017796,142.78,142.74,11.81757557]
[1768702079815,2.83017796,142.78,142.75,2.69971891]
[1768702082318,2.83017796,142.78,142.75,9.70453301]
[1768702082523,2.83017796,142.78,142.76,2.69971891]
[1768702086216,2.66968781,142.79,142.77,2.69971891]
[1768702086723,2.66968781,142.81,142.78,2.69971891]
[1768702087019,2.66968781,142.82,142.79,4.81202719]
[1768702087216,2.66968781,142.82,142.79,4.57590851]
[1768702087415,2.66968781,142.82,142.79,2.46360023]
[1768702087617,2.66968781,142.82,142.78,2.11230828]
[1768702088219,2.66968781,142.82,142.79,7.00329154]
[1768702088524,2.66968781,142.82,142.79,9.11559982]
[1768702091618,2.66968781,142.82,142.79,11.81531873]
[1768702091822,2.66968781,142.83,142.8,4.81202719]
[1768702092005,2.66968781,142.83,142.8,4.5459105]
[1768702093013,2.66968781,142.83,142.79,9.70301045]
[1768702093214,2.66968781,142.8,142.76,2.69971891]
[1768702093622,2.66968781,142.79,142.76,7.00476323]
[1768702094933,2.66968781,142.79,142.76,9.70448214]
[1768702095735,4.78199609,142.79,142.76,9.70448214]
[1768702098835,2.66968781,142.79,142.76,9.70448214]
[1768702106231,2.62691133,142.76,142.73,20.16293907]
[1768702106433,4.67718404,142.76,142.73,20.16293907]
[1768702107546,4.67718404,142.76,142.74,7.00557276]
[1768702108929,2.62691133,142.75,142.73,7.00610306]
[1768702109245,2.56691134,142.75,142.73,9.65388136]
[1768702110347,2.1102727,142.76,142.73,9.65388136]
[1768702111051,4.73718403,142.76,142.73,9.65388136]
[1768702112354,2.62691133,142.75,142.73,9.65388136]
[1768702113037,2.56691134,142.75,142.73,9.65388136]
[1768702113547,2.1102727,142.76,142.73,9.65388136]
[1768702115250,4.8203268,142.76,142.73,9.65388136]
[1768702116254,2.7100541,142.75,142.73,9.65388136]
[1768702118757,4.8203268,142.76,142.73,9.65388136]
[1768702126562,2.7100541,142.76,142.73,9.65388136]
[1768702126763,4.8203268,142.76,142.73,9.65388136]
[1768702134380,2.7100541,142.76,142.74,2.74573408]
[1768702134554,2.78770927,142.78,142.74,4.85600678]
[1768702134754,2.78770927,142.79,142.76,2.74573408]
[1768702136460,2.78770927,142.79,142.76,9.75020346]
[1768702137384,4.89798197,142.79,142.76,9.75020346]
[1768702138277,5.24112447,142.78,142.76,9.75020346]
[1768702138470,4.89798197,142.79,142.76,9.75020346]
[1768702138670,5.24112447,142.78,142.76,9.75020346]
[1768702138873,4.89798197,142.79,142.76,9.75020346]
[1768702139177,5.24112651,142.78,142.76,9.75020346]
[1768702139376,4.89798197,142.79,142.76,9.75020346]
[1768702139580,5.24162303,142.78,142.76,9.75020346]
[1768702139782,4.89798197,142.79,142.76,9.75020346]
[1768702140079,5.24162303,142.78,142.76,9.75020346]
[1768702140284,4.89798197,142.79,142.76,9.75020346]
[1768702140581,5.24208417,142.78,142.76,9.75020346]
[1768702140763,4.89798197,142.79,142.76,9.75020346]
[1768702140968,5.24208417,142.78,142.76,9.75020346]
[1768702141280,4.89798197,142.79,142.76,9.75020346]
[1768702142593,2.78770927,142.79,142.76,9.75020346]
[1768702142825,11.90079559,142.8,142.77,2.74573408]
[1768702144472,2.78770927,142.79,142.76,2.74573408]
[1768702147295,2.78770927,142.79,142.76,9.75048046]
[1768702150894,2.78770927,142.79,142.76,7.00474638]
[1768702151192,2.78770927,142.79,142.77,2.74573408]
[1768702155690,5.24395958,142.78,142.77,2.74573408]
[1768702155894,5.18395959,142.78,142.77,2.74573408]
[1768702156890,2.78770927,142.79,142.77,2.74573408]
[1768702161902,11.90079559,142.8,142.77,2.74573408]
[1768702166800,9.79052289,142.8,142.77,2.74573408]
[1768702166972,11.90079559,142.8,142.77,2.74573408]
[1768702167300,11.90063702,142.8,142.77,2.74573408]
[1768702167798,5.24360866,142.79,142.77,2.74573408]
[1768702168097,11.90063702,142.8,142.77,2.74573408]
[1768702168297,5.24361069,142.79,142.77,2.74573408]
[1768702168499,11.90063702,142.8,142.77,2.74573408]
[1768702168711,5.24369117,142.79,142.77,2.74573408]
[1768702168907,11.90063702,142.8,142.77,2.74573408]
[1768702169211,5.24363076,142.79,142.77,2.74573408]
[1768702169373,11.90063702,142.8,142.77,2.74573408]
[1768702169577,5.24365847,142.79,142.77,2.74573408]
[1768702169781,11.90063702,142.8,142.77,2.74573408]
[1768702169982,5.24365847,142.79,142.77,2.74573408]
[1768702170183,11.90063702,142.8,142.77,2.74573408]
[1768702170374,5.24373597,142.79,142.77,2.74573408]
[1768702170576,11.90063702,142.8,142.77,2.74573408]
[1768702170810,5.24373597,142.79,142.77,2.74573408]
[1768702171013,11.90063702,142.8,142.77,2.74573408]
[1768702171314,5.24373394,142.79,142.77,2.74573408]
[1768702171483,11.90063702,142.8,142.77,2.74573408]
[1768702171686,5.24386121,142.79,142.77,2.74573408]
[1768702171982,11.90063702,142.8,142.77,2.74573408]
[1768702172183,5.24386121,142.79,142.77,2.74573408]
[1768702172400,11.90063702,142.8,142.77,2.74573408]
[1768702172602,5.24404316,142.79,142.77,2.74573408]
[1768702172820,4.8978234,142.8,142.77,9.74997366]
[1768702172990,5.24404112,142.79,142.77,9.74997366]
[1768702173181,4.8978234,142.8,142.77,9.74997366]
[1768702173500,4.7438377,142.82,142.78,2.66573752]
[1768702173699,2.63372357,142.82,142.79,2.66573752]
[1768702174484,2.63372357,142.82,142.8,7.00280112]
[1768702175812,7.10121504,142.84,142.8,2.70267534]
[1768702175986,2.71996063,142.83,142.8,2.70267534]
[1768702176186,4.93007476,142.84,142.8,2.70267534]
[1768702177008,4.93007476,142.84,142.81,7.00231076]
[1768702177211,4.93007476,142.84,142.81,9.6749861]
[1768702179920,2.81996063,142.84,142.81,9.6749861]
[1768702180526,4.93007476,142.84,142.81,9.6749861]
[1768702182517,4.93007476,142.84,142.81,9.6449861]
[1768702184011,2.81996063,142.84,142.81,9.6449861]
[1768702187794,2.71996063,142.83,142.81,6.94231076]
[1768702187991,2.71996063,142.82,142.81,6.94231076]
[1768702188195,4.83007476,142.83,142.81,6.94231076]
[1768702190223,2.71996063,142.82,142.79,20.2109042]
[1768702191018,2.71996063,142.82,142.8,2.70267534]
[1768702191318,2.71996063,142.83,142.81,7.00231076]
[1768702191620,4.83007476,142.83,142.81,7.00231076]
[1768702194308,2.11011413,142.82,142.79,7.00329154]
[1768702194514,2.75631347,142.81,142.79,7.00329154]
[1768702197530,4.8664276,142.82,142.79,2.65362767]
[1768702199646,4.8664276,142.82,142.8,7.00280112]
[1768702201031,4.8664276,142.82,142.8,2.65362767]
[1768702201538,4.8664276,142.82,142.79,2.65362767]
[1768702202245,4.8664276,142.82,142.8,7.00280112]
[1768702208657,2.75631347,142.82,142.8,7.00280112]
[1768702208842,2.75631347,142.82,142.8,2.65362767]
[1768702209044,4.8664276,142.83,142.8,2.65362767]
[1768702209352,5.23293333,142.82,142.8,2.65362767]
[1768702209541,2.11011413,142.83,142.8,2.65362767]
[1768702209744,2.32653003,142.82,142.81,2.65362767]
[1768702209930,24.55116177,142.84,142.82,2.65362767]
[1768702210131,27.30747524,142.84,142.8,7.00234861]
[1768702211050,2.75631347,142.83,142.8,7.00234861]
[1768702212058,2.75631347,142.83,142.8,9.65597628]
[1768702213656,20.3064276,142.84,142.81,2.65362767]
[1768702214148,18.19631347,142.84,142.81,2.65362767]
[1768702214353,20.3064276,142.84,142.81,2.65362767]
[1768702215147,20.3064276,142.84,142.81,9.65565756]
[1768702216358,2.75631347,142.83,142.81,7.00202989]
[1768702217459,4.8664276,142.83,142.8,9.65622653]
[1768702217959,2.75631347,142.81,142.77,2.65362767]
[1768702218262,4.8664276,142.81,142.78,9.65702762]
[1768702219361,2.75631347,142.8,142.78,7.00339995]
[1768702219538,2.11011413,142.81,142.78,9.65702762]
[1768702220965,2.11011413,142.8,142.78,7.00339995]
[1768702221443,4.8664276,142.8,142.78,7.00339995]
[1768702223560,4.8664276,142.8,142.78,2.6521212]
[1768702224663,2.75631347,142.8,142.78,2.6521212]
[1768702225468,2.35072888,142.78,142.73,2.6521212]
[1768702225667,2.11011413,142.76,142.73,2.6521212]
[1768702225844,4.46057787,142.76,142.73,2.6521212]
[1768702226044,2.35046374,142.76,142.73,2.6521212]
[1768702226448,17.69046374,142.82,142.76,2.6521212]
[1768702226650,7.34798741,142.81,142.77,2.6521212]
[1768702226854,2.11011413,142.81,142.77,2.6521212]
[1768702227364,2.11011413,142.8,142.77,2.6521212]
[1768702227565,2.11011413,142.79,142.77,2.6521212]
[1768702227868,2.11011413,142.79,142.76,2.6521212]
[1768702227869,2.11011413,142.78,142.76,2.6521212]
[1768702229460,2.11061796,142.78,142.76,2.6521212]
[1768702233969,2.11061796,142.8,142.77,2.6521212]
[1768702235666,2.11061796,142.8,142.77,9.65636381]
[1768702237877,11.46439062,142.81,142.77,9.65636381]
[1768702239769,2.11061796,142.8,142.77,2.6521212]
[1768702241852,9.11346801,142.8,142.77,2.6521212]
[1768702243974,7.00285005,142.8,142.77,2.6521212]
[1768702244150,9.11346801,142.8,142.77,2.6521212]
[1768702244979,11.46989047,142.8,142.77,2.6521212]
[1768702248876,2.11061796,142.79,142.77,2.6521212]
[1768702250078,9.11391314,142.79,142.77,2.6521212]
[1768702251080,7.00329518,142.79,142.77,2.6521212]
[1768702251378,2.11061796,142.79,142.77,2.6521212]
[1768702253985,9.35941007,142.8,142.77,2.6521212]
[1768702254159,11.47002803,142.8,142.77,2.6521212]
[1768702261194,4.47317879,142.78,142.76,2.63135478]
[1768702261391,2.11061796,142.77,142.75,2.63135478]
[1768702261575,2.05061797,142.77,142.75,2.63135478]
[1768702264293,9.36647559,142.78,142.75,2.63135478]
[1768702264294,11.47709355,142.78,142.75,2.63135478]
[1768702265301,4.47317879,142.78,142.75,9.63658986]
[1768702265501,2.11061796,142.78,142.76,2.63135478]
[1768702268917,9.11412823,142.79,142.77,2.63135478]
[1768702269120,5.24488359,142.78,142.77,2.63135478]
[1768702270005,5.24488359,142.78,142.76,2.63135478]
[1768702270207,11.47948238,142.79,142.76,2.63135478]
[1768702270406,5.24523119,142.78,142.76,2.63135478]
[1768702270709,11.47948238,142.79,142.76,2.63135478]
[1768702271005,5.24537266,142.78,142.76,2.63135478]
[1768702271206,11.47948238,142.79,142.76,2.63135478]
[1768702271407,5.24537266,142.78,142.76,2.63135478]
[1768702271620,11.47948238,142.79,142.76,2.63135478]
[1768702271798,5.24661531,142.78,142.76,2.63135478]
[1768702272092,11.47948238,142.79,142.76,2.63135478]
[1768702272298,5.24661531,142.78,142.76,2.63135478]
[1768702272498,9.11412823,142.79,142.77,2.63135478]
[1768702272697,5.24721093,142.78,142.77,2.63135478]
[1768702274322,19.81655438,142.8,142.77,2.63135478]
[1768702274520,19.81655438,142.8,142.78,2.63135478]
[1768702274820,17.45061796,142.8,142.78,2.63135478]
[1768702275022,17.45061796,142.8,142.78,2.60135478]
[1768702276704,2.11061796,142.79,142.74,2.11061796]
[1768702276906,2.11061796,142.79,142.74,105.61061796]
[1768702277104,2.11061796,142.79,142.75,2.63135478]
[1768702278127,2.11061796,142.79,142.77,2.63135478]
[1768702279242,2.11061796,142.79,142.76,7.00476323]
[1768702279243,2.11061796,142.78,142.76,9.63611801]
[1768702279805,2.11061796,142.77,142.76,9.63611801]
[1768702281316,2.11061796,142.77,142.76,7.00476323]
[1768702281928,2.11061796,142.77,142.75,9.63644677]
[1768702282338,2.39836431,142.78,142.75,9.63644677]
[1768702282522,2.11061796,142.77,142.76,7.00469427]
[1768702283345,4.50965294,142.77,142.75,7.00510913]
[1768702283832,4.50965294,142.77,142.74,2.79986672]
[1768702284737,4.50965294,142.77,142.75,7.00516164]
[1768702286439,5.24663884,142.76,142.75,7.00516164]
[1768702286634,5.18663885,142.76,142.75,7.00516164]
[1768702291431,4.50995886,142.77,142.75,7.00516164]
[1768702296946,17.45092388,142.8,142.72,2.90493211]
[1768702296947,2.40206084,142.75,142.72,2.90493211]
[1768702297132,2.11092388,142.74,142.72,2.90493211]
[1768702297335,2.05092389,142.74,142.72,2.90493211]
[1768702297538,2.05092389,142.74,142.72,9.91137982]
[1768702298145,2.34206085,142.75,142.72,9.91137982]
[1768702298339,2.11092388,142.74,142.72,9.91137982]
[1768702306049,2.05092389,142.74,142.72,9.91137982]
[1768702311154,2.34206085,142.75,142.72,9.91137982]
[1768702311358,4.45298473,142.75,142.72,9.91137982]
[1768702311687,2.11092388,142.75,142.73,2.90493211]
[1768702312336,2.11092388,142.75,142.73,9.91105475]
[1768702319143,2.05092389,142.75,142.73,9.91105475]
[1768702324369,2.11092388,142.75,142.73,9.91105475]
[1768702327375,5.24446445,142.74,142.73,9.91105475]
[1768702327547,5.18446446,142.74,142.73,9.91105475]
[1768702330673,2.11092388,142.75,142.73,9.91105475]
[1768702338189,2.34475505,142.76,142.73,9.91105475]
[1768702338362,2.11092388,142.75,142.73,9.91105475]
[1768702340286,4.45567893,142.76,142.73,9.91105475]
[1768702344705,2.34475505,142.76,142.73,9.91105475]
[1768702345000,4.45567893,142.76,142.73,9.91105475]
[1768702351375,4.45625272,142.76,142.73,9.91105475]
[1768702351592,5.25295555,142.75,142.73,9.91105475]
[1768702351771,4.45625272,142.76,142.73,9.91105475]
[1768702351976,2.34475505,142.76,142.73,9.91105475]
[1768702352293,4.45625272,142.76,142.73,9.91105475]
[1768702352590,19.80267211,142.77,142.74,2.88035103]
[1768702353683,19.80267211,142.77,142.74,9.88593138]
[1768702356882,4.46267211,142.77,142.74,9.88593138]
[1768702360104,2.11149767,142.77,142.75,2.83523695]
[1768702361391,2.11149767,142.76,142.75,2.83523695]
[1768702361592,9.3560407,142.78,142.75,2.83523695]
[1768702361891,2.11149767,142.76,142.75,2.83523695]
[1768702363814,7.36412018,142.76,142.75,2.83523695]
[1768702364016,7.36412018,142.76,142.72,24.52298345]
[1768702364017,6.55302892,142.76,142.72,24.52298345]
[1768702364201,2.11149767,142.76,142.72,24.52298345]
[1768702364510,2.11149767,142.76,142.73,2.83523695]
[1768702365904,2.05149768,142.76,142.73,2.83523695]
[1768702367516,2.05149768,142.76,142.74,2.83523695]
[1768702369526,15.34,142.79,142.75,2.83523695]
[1768702369527,25.04666529,142.79,142.75,2.83523695]
[1768702369829,2.11149767,142.78,142.75,2.83523695]
[1768702372118,2.11149767,142.78,142.76,2.76894728]
[1768702375305,20.15451229,142.79,142.76,2.76894728]
[1768702375801,20.15451229,142.79,142.76,9.77362328]
[1768702376002,5.24669147,142.78,142.76,9.77362328]
[1768702376203,20.15451229,142.79,142.76,9.77362328]
[1768702376402,5.24631058,142.78,142.76,9.77362328]
[1768702376619,20.15451229,142.79,142.76,9.77362328]
[1768702376823,5.24631058,142.78,142.77,2.76894728]
[1768702377722,5.24631058,142.78,142.75,7.00525394]
[1768702378019,17.45149767,142.79,142.77,2.76894728]
[1768702378318,5.24595812,142.78,142.77,2.76894728]
[1768702378517,20.35289234,142.79,142.77,2.76894728]
[1768702378715,5.24564847,142.78,142.77,2.76894728]
[1768702379320,5.24564847,142.78,142.76,2.76894728]
[1768702379616,20.35289234,142.79,142.76,2.76894728]
[1768702379820,5.24538892,142.78,142.76,2.76894728]
[1768702380120,20.35289234,142.79,142.76,2.76894728]
[1768702380322,5.24538892,142.78,142.76,2.76894728]
[1768702380524,20.35289234,142.79,142.76,9.77348449]
[1768702380706,5.2453477,142.78,142.76,9.77348449]
[1768702380901,20.35289234,142.79,142.76,9.77348449]
[1768702381101,5.24534566,142.78,142.76,9.77348449]
[1768702381320,5.01289234,142.79,142.76,9.77348449]
[1768702381517,5.24512848,142.78,142.76,9.77348449]
[1768702381830,5.01289234,142.79,142.76,9.77348449]
[1768702382017,5.24512848,142.78,142.76,9.77348449]
[1768702382213,5.01289234,142.79,142.76,9.77348449]
[1768702382426,5.24494116,142.78,142.76,9.77348449]
[1768702382606,5.01289234,142.79,142.76,9.77348449]
[1768702382809,5.24494116,142.78,142.76,9.77348449]
[1768702383030,5.01289234,142.79,142.76,9.77348449]
[1768702383223,5.24493912,142.78,142.76,9.77348449]
[1768702383409,5.01289234,142.79,142.76,9.77348449]
[1768702383730,5.24478377,142.78,142.76,9.77348449]